bitfinex-derivatives/quotes_ETHF0:USTF0_20250104
["timestamp","ask_amount","ask_price","bid_price","bid_amount"]
[1735996153818,0.27541,3632.2,3632.1,0.27541]
[1735996155722,1.563,3632.3,3632.0,0.27542]
[1735996155924,0.27541,3632.2,3632.1,0.27541]
[1735996156425,0.27542,3632.1,3632.0,0.27542]
[1735996156824,1.563,3632.3,3632.0,0.27542]
[1735996157227,0.27541,3632.2,3632.1,0.27541]
[1735996161630,1.562,3632.3,3631.7,3.2078]
[1735996161827,1.8374,3632.3,3632.2,0.27541]
[1735996163533,0.27541,3632.2,3632.1,0.27541]
[1735996164125,1.562,3632.3,3631.6,8.03317675]
[1735996164331,1.8374,3632.3,3632.2,0.27541]
[1735996164927,0.55,3632.5,3632.1,2.2201992]
[1735996165135,5.37552162,3632.8,3632.7,0.27537]
[1735996165136,5.81672162,3632.8,3632.7,0.27537]
[1735996166432,3.649,3632.8,3632.7,0.27537]
[1735996169134,0.4412,3632.8,3632.7,0.27537]
[1735996173238,0.9742,3633.1,3633.0,0.27535]
[1735996174439,1.5659,3633.2,3633.1,0.27534]
[1735996174743,0.4669,3633.2,3633.1,0.27534]
[1735996174935,3.2078,3633.3,3632.8,0.5022]
[1735996175237,3.2078,3633.3,3633.2,0.27533]
[1735996177132,0.4669,3633.5,3633.4,0.27532]
[1735996177337,0.74221,3633.5,3633.4,0.27532]
[1735996177532,0.4669,3633.5,3633.0,0.4797]
[1735996177833,0.27535,3632.9,3632.8,5.09133675]
[1735996178038,3.2078,3633.3,3632.8,4.81597675]
[1735996178237,0.27534,3633.1,3633.0,0.27534]
[1735996178434,3.2078,3633.3,3632.8,4.81597675]
[1735996178628,0.27533,3633.2,3633.1,0.27533]
[1735996179838,3.2078,3633.3,3633.2,0.27533]
[1735996180434,2.16772162,3633.6,3632.9,0.4105]
[1735996180640,2.16772162,3633.6,3633.5,0.27531]
[1735996181637,5.5584,3633.7,3633.6,0.2753]
[1735996182043,0.27531,3633.6,3633.5,0.2753]
[1735996186147,0.2753,3633.6,3633.3,0.27532]
[1735996186448,0.2753,3633.6,3633.5,0.27531]
[1735996186849,0.27531,3633.5,3633.4,0.71881]
[1735996187250,0.27531,3633.6,3633.5,0.2753]
[1735996189352,0.9763,3633.7,3633.4,0.4435]
[1735996189849,0.27531,3633.6,3633.5,0.6987]
[1735996192351,1.2516,3633.7,3633.6,0.2753]
[1735996192654,0.2753,3633.6,3633.5,0.69871]
[1735996194256,4.1841,3633.7,3633.4,1.44383175]
[1735996194456,0.27531,3633.5,3633.4,1.71914175]
[1735996194850,4.1841,3633.7,3633.4,1.44383175]
[1735996195048,4.1841,3633.7,3633.5,0.2753]
[1735996195049,0.2753,3633.6,3633.5,0.2753]
[1735996197457,4.4594,3633.7,3633.6,0.2753]
[1735996197655,4.4594,3633.7,3633.6,1.27563175]
[1735996197854,3.953,3633.7,3633.6,1.27563175]
[1735996198762,3.6777,3633.7,3633.6,1.27563175]
[1735996199065,3.95299,3633.7,3633.6,1.27563175]
[1735996199255,3.6777,3633.7,3633.6,1.27563175]
[1735996199450,3.2078,3633.7,3633.6,1.27563175]
[1735996199760,2.16772162,3634.2,3634.0,0.27527]
[1735996199761,3.2078,3634.1,3634.0,0.27527]
[1735996199955,2.44298162,3634.2,3634.1,0.27526]
[1735996200754,0.27526,3634.2,3634.1,0.27526]
[1735996201161,2.16772162,3634.4,3634.0,1.00033175]
[1735996201354,0.27527,3634.0,3633.7,0.27529]
[1735996201557,0.27529,3633.8,3633.7,0.27529]
[1735996201760,0.27529,3633.8,3633.7,1.27562175]
[1735996205169,0.68698,3633.9,3633.8,0.27529]
[1735996206871,0.4117,3633.9,3633.8,0.27529]
[1735996207065,3.2078,3634.1,3634.0,0.27527]
[1735996207265,3.2078,3634.1,3634.0,1.27560175]
[1735996208771,0.27526,3634.2,3634.0,1.00033175]
[1735996208973,0.27526,3634.2,3634.1,0.27526]
[1735996209370,0.4269,3634.3,3634.0,1.00033175]
[1735996209567,0.70215,3634.3,3634.2,1.27559175]
[1735996209767,0.4269,3634.3,3634.2,1.27559175]
[1735996210264,0.70215,3634.3,3634.2,1.27559175]
[1735996210464,0.4269,3634.3,3634.2,1.27559175]
[1735996210664,0.27524,3634.4,3634.2,1.00033175]
[1735996210863,0.27524,3634.4,3634.3,0.72315]
[1735996213271,0.27524,3634.4,3634.3,0.27525]
[1735996214167,3.6341,3634.5,3634.2,1.00033175]
[1735996214475,3.6341,3634.5,3634.4,1.27557175]
[1735996214973,3.2078,3634.5,3634.4,2.2759035]
[1735996215366,2.60222162,3635.0,3634.9,0.2752]
[1735996215564,2.60222162,3635.0,3634.9,1.27553175]
[1735996216570,2.16772162,3635.0,3634.9,1.27553175]
[1735996217172,3.2078,3635.1,3635.0,0.27519]
[1735996217572,3.48299,3635.1,3635.0,0.27519]
[1735996217873,3.6144,3635.1,3634.9,1.00033175]
[1735996218075,0.4714,3635.0,3634.6,4.75077675]
[1735996218277,0.27521,3634.9,3634.8,1.27554175]
[1735996218578,0.7466,3635.0,3634.8,1.00033175]
[1735996218778,0.4714,3635.0,3634.8,1.00033175]
[1735996219080,0.2752,3634.9,3634.8,1.27554175]
[1735996219377,0.7466,3635.0,3634.9,0.2752]
[1735996219978,0.7466,3635.0,3634.8,1.00033175]
[1735996219979,0.2752,3634.9,3634.8,1.27554175]
[1735996221076,0.7466,3635.0,3634.9,0.2752]
[1735996221980,0.4714,3635.0,3634.9,0.2752]
[1735996230382,0.4084,3635.3,3635.2,0.27518]
[1735996230582,3.2078,3635.4,3635.1,1.00033175]
[1735996230785,3.2078,3635.4,3635.3,0.27517]
[1735996230786,3.48296,3635.4,3635.3,0.27517]
[1735996230986,0.27516,3635.4,3635.3,0.27517]
[1735996231783,4.20813175,3635.4,3635.1,0.4742]
[1735996232084,4.20813175,3635.4,3635.1,0.74938]
[1735996232085,0.27518,3635.2,3635.1,0.74938]
[1735996232284,0.27518,3635.2,3635.1,0.27518]
[1735996232485,0.27519,3635.1,3635.0,0.27519]
[1735996232674,0.27522,3634.7,3634.6,4.58899675]
[1735996232880,3.48302,3634.7,3634.6,4.31377675]
[1735996233278,3.2078,3634.7,3634.5,4.31377675]
[1735996233486,1.27555175,3634.6,3634.5,4.31377675]
[1735996235087,0.27523,3634.5,3634.4,0.27524]
[1735996235289,0.75583,3634.5,3634.4,0.27524]
[1735996235483,0.27525,3634.3,3634.2,0.27526]
[1735996235682,0.8749,3634.4,3634.1,1.42803175]
[1735996235887,0.27525,3634.3,3634.2,0.27525]
[1735996236388,0.27525,3634.3,3634.1,1.42803175]
[1735996236389,1.15014,3634.4,3634.3,0.27525]
[1735996236587,1.15014,3634.4,3634.1,0.4277]
[1735996236588,0.27526,3634.2,3634.1,0.27526]
[1735996237184,0.4806,3634.5,3634.4,0.27524]
[1735996238282,3.2078,3634.7,3634.0,2.21578881]
[1735996238482,3.48302,3634.7,3634.6,0.27522]
[1735996239891,0.27523,3634.6,3634.5,0.27523]
[1735996240786,3.2078,3634.7,3634.0,6.52956556]
[1735996240986,0.27523,3634.5,3634.4,0.27524]
[1735996241188,3.2078,3634.7,3634.0,6.52956556]
[1735996241390,0.27523,3634.6,3634.5,0.27523]
[1735996246695,0.27523,3634.5,3634.4,0.27524]
[1735996246897,0.27524,3634.4,3634.3,4.31377675]
[1735996248399,0.27525,3634.3,3634.2,6.74592513]
[1735996248600,0.74505,3634.3,3634.2,6.74592513]
[1735996249504,0.74505,3634.3,3634.2,0.27526]
[1735996251210,0.27526,3634.2,3634.1,4.5965878]
[1735996251699,3.48306,3634.2,3634.1,4.3213278]
[1735996251897,3.96376,3634.2,3634.1,4.3213278]
[1735996254506,3.96376,3634.2,3633.8,0.4681]
[1735996254507,3.6885,3634.2,3633.8,0.4681]
[1735996254707,0.27528,3633.9,3633.8,0.4681]
[1735996257307,0.74818,3633.9,3633.8,0.4681]
[1735996258108,0.2753,3633.6,3633.5,5.2733278]
[1735996258309,0.2753,3633.6,3633.5,6.27359816]
[1735996259002,0.2753,3633.6,3633.5,5.32159816]
[1735996260510,0.2753,3633.6,3633.5,1.00027036]
[1735996263310,0.2753,3633.6,3633.5,1.27558036]
[1735996267307,3.6885,3634.2,3633.5,1.00027036]
[1735996267512,0.72305,3634.3,3633.5,5.0096078]
[1735996267714,0.72305,3634.3,3634.2,0.27526]
[1735996267915,2.16772162,3634.5,3634.4,0.27524]
[1735996269120,2.44295162,3634.5,3634.4,1.27551036]
[1735996269721,0.27523,3634.5,3634.4,1.27551036]
[1735996270327,0.27523,3634.5,3634.4,0.27524]
[1735996270826,2.0212,3634.7,3634.1,6.53670838]
[1735996271026,0.27523,3634.6,3634.4,0.27523]
[1735996271427,0.27523,3634.6,3634.5,0.4495]
[1735996274229,0.27523,3634.6,3634.5,0.72473]
[1735996275830,0.27523,3634.6,3634.5,0.4495]
[1735996276032,0.27523,3634.6,3634.5,0.72473]
[1735996279918,0.27522,3634.6,3634.5,0.27523]
[1735996280123,0.9232,3634.7,3634.4,4.3213278]
[1735996280433,0.9232,3634.7,3634.3,6.47066513]
[1735996280629,0.27524,3634.4,3634.3,6.74590513]
[1735996281731,0.27524,3634.4,3634.3,11.12605817]
[1735996282433,0.27524,3634.5,3634.4,0.27524]
[1735996284535,0.27524,3634.5,3634.4,4.5979719]
[1735996288134,0.27524,3634.5,3634.4,0.27524]
[1735996288327,0.27524,3634.5,3634.4,4.65512863]
[1735996290949,0.27524,3634.5,3634.4,0.27524]
[1735996291240,0.27524,3634.5,3634.4,4.59784089]
[1735996296538,0.27523,3634.6,3634.5,0.27523]
[1735996297143,0.27523,3634.6,3634.5,1.27503507]
[1735996299848,0.27523,3634.6,3634.5,0.99980507]
[1735996300043,0.99980507,3634.6,3634.4,4.32260089]
[1735996300242,0.27523,3634.5,3634.4,4.32260089]
[1735996300444,0.27523,3634.5,3634.4,0.95260089]
[1735996301146,0.27525,3634.3,3634.2,6.47066513]
[1735996301347,4.48285507,3634.3,3634.2,6.47066513]
[1735996304643,0.27524,3634.4,3634.3,0.27525]
[1735996304846,0.27525,3634.3,3634.2,6.74591513]
[1735996305039,0.27525,3634.3,3634.2,6.47066513]
[1735996306151,3.2078,3634.4,3634.1,1.76036507]
[1735996306352,0.27526,3634.2,3634.1,1.76036507]
[1735996306547,0.27526,3634.2,3634.1,1.48510507]
[1735996306757,3.2078,3634.4,3634.1,1.48510507]
[1735996307051,0.27525,3634.3,3634.2,0.27525]
[1735996307242,2.15454051,3634.5,3634.1,0.4853]
[1735996307439,2.15454051,3634.5,3634.4,0.27524]
[1735996308051,2.15454051,3634.5,3634.4,1.27504507]
[1735996309146,0.27522,3634.7,3634.5,0.27523]
[1735996309348,0.27522,3634.7,3634.6,1.48790507]
[1735996309551,0.27522,3634.7,3634.6,1.95670507]
[1735996310941,0.27522,3634.7,3634.6,2.23192507]
[1735996312658,3.2078,3634.8,3634.7,0.27522]
[1735996312659,3.48301,3634.8,3634.7,0.27522]
[1735996312851,3.48301,3634.8,3634.7,0.75142]
[1735996313160,3.2078,3634.8,3634.7,0.75142]
[1735996313454,3.48301,3634.8,3634.7,0.75142]
[1735996314955,3.48301,3634.8,3634.7,11.53737874]
[1735996316053,3.48301,3634.8,3634.7,11.26215874]
[1735996316557,3.48301,3634.8,3634.7,11.53737874]
[1735996320359,0.2752,3635.0,3634.9,0.2752]
[1735996320560,0.2752,3635.0,3634.9,1.27500507]
[1735996321553,0.2752,3635.0,3634.9,5.57442513]
[1735996322454,0.27518,3635.2,3634.9,5.29922513]
[1735996322662,0.27518,3635.2,3635.1,1.27499507]
[1735996322954,2.15454051,3635.4,3635.3,0.27517]
[1735996323162,2.15454051,3635.4,3635.3,1.27497507]
[1735996323562,2.15454051,3635.6,3635.5,0.27516]
[1735996323761,2.15454051,3635.6,3635.5,2.27477014]
[1735996324559,2.15454051,3635.6,3635.5,1.27496507]
[1735996325163,2.81705128,3635.7,3635.6,0.27515]
[1735996325464,0.27511,3636.1,3635.6,0.27515]
[1735996325661,0.27511,3636.1,3636.0,1.27492507]
[1735996326059,5.36382907,3636.3,3636.0,0.99980507]
[1735996326264,5.63892907,3636.3,3636.2,0.2751]
[1735996327165,3.4829,3636.3,3636.2,0.2751]
[1735996327365,0.2751,3636.2,3636.1,0.27511]
[1735996327864,3.2078,3636.3,3636.1,0.27511]
[1735996328062,3.2078,3636.3,3635.9,2.21328686]
[1735996328063,3.2078,3636.3,3636.2,0.2751]
[1735996329154,3.4829,3636.3,3636.0,0.4389]
[1735996329357,0.27511,3636.1,3636.0,0.4389]
[1735996330761,0.4227,3636.2,3635.8,0.73463]
[1735996331060,0.27512,3636.0,3635.9,0.27513]
[1735996331266,0.27513,3635.8,3635.7,0.4897]
[1735996331867,0.27513,3635.9,3635.7,0.76484]
[1735996332963,0.27513,3635.9,3635.8,0.27513]
[1735996333162,0.27513,3635.8,3635.7,0.4897]
[1735996333369,0.27513,3635.8,3635.7,0.76484]
[1735996334067,0.4212,3636.1,3635.7,0.4897]
[1735996334261,0.4212,3636.1,3635.8,0.27513]
[1735996334262,0.27513,3635.9,3635.8,0.27513]
[1735996335164,0.27513,3635.8,3635.7,0.76484]
[1735996336474,0.27513,3635.9,3635.8,0.27513]
[1735996336664,0.4212,3636.1,3635.7,0.27514]
[1735996336665,0.27514,3635.8,3635.7,0.27514]
[1735996337760,0.27513,3635.9,3635.8,0.27513]
[1735996338372,0.4212,3636.1,3635.3,5.42108686]
[1735996338570,0.4212,3636.1,3635.8,0.27513]
[1735996338867,0.27513,3635.9,3635.8,0.27513]
[1735996339468,0.4212,3636.1,3635.3,5.42108686]
[1735996340171,0.27515,3635.6,3635.5,0.27516]
[1735996341067,0.27514,3635.7,3635.6,0.27514]
[1735996342775,0.27514,3635.8,3635.7,0.27513]
[1735996343277,0.27512,3636.0,3635.7,0.27514]
[1735996343577,0.27514,3635.8,3635.7,0.27514]
[1735996346077,0.27513,3635.9,3635.8,0.27513]
[1735996346577,0.27513,3635.9,3635.3,2.90121686]
[1735996346578,3.2078,3636.0,3635.3,2.90121686]
[1735996346765,3.2078,3636.0,3635.9,0.27513]
[1735996348479,3.2078,3636.0,3635.9,1.27411721]
[1735996349273,1.12981,3636.2,3636.0,0.27512]
[1735996349274,0.27512,3636.1,3636.0,0.27512]
[1735996351078,1.12981,3636.2,3636.0,0.27512]
[1735996351582,1.12981,3636.2,3636.1,0.27511]
[1735996353678,0.27512,3636.1,3636.0,0.27512]
[1735996357379,0.8547,3636.2,3635.9,0.99898721]
[1735996357586,1.12981,3636.2,3636.1,1.27409721]
[1735996358186,4.33761,3636.2,3636.1,1.27409721]
[1735996359092,4.0625,3636.2,3636.0,0.27512]
[1735996359283,0.27511,3636.1,3636.0,0.27512]
[1735996360683,4.0625,3636.2,3636.1,0.27511]
[1735996360684,3.2078,3636.2,3636.1,0.27511]
[1735996360988,3.2078,3636.2,3636.1,1.27409721]
[1735996361492,1.3026,3636.9,3636.8,0.27506]
[1735996361493,4.31303876,3636.9,3636.8,0.27506]
[1735996361789,6.46731067,3637.7,3637.6,0.275]
[1735996361982,6.46731067,3637.7,3637.6,4.48178721]
[1735996362181,6.46731067,3637.7,3637.6,5.48077442]
[1735996363283,0.4167,3638.3,3637.6,19.39976307]
[1735996363492,0.69165,3638.3,3638.2,0.99898721]
[1735996364383,0.69165,3638.3,3638.0,0.27496]
[1735996364585,0.69165,3638.3,3638.1,0.27496]
[1735996364785,0.4167,3638.3,3638.2,0.27495]
[1735996364986,0.4167,3638.3,3638.1,2.2108796]
[1735996365178,0.4167,3638.3,3638.2,0.27495]
[1735996366091,3.2078,3638.4,3638.1,2.2108796]
[1735996366289,0.27492,3638.7,3638.5,0.27493]
[1735996366486,3.2078,3639.0,3638.5,2.2108796]
[1735996366785,0.27488,3639.2,3638.9,5.6935796]
[1735996366984,0.27488,3639.2,3638.9,5.4186796]
[1735996367185,0.4113,3639.4,3638.9,5.4186796]
[1735996367384,0.27488,3639.2,3638.9,5.4186796]
[1735996367587,0.4113,3639.4,3638.9,5.4186796]
[1735996367790,0.27489,3639.0,3638.9,2.2108796]
[1735996369589,0.4243,3639.2,3638.6,2.2108796]
[1735996369796,0.2749,3638.9,3638.6,2.4857996]
[1735996370383,0.4243,3639.2,3638.6,2.4857996]
[1735996370588,0.27491,3638.8,3638.6,2.2108796]
[1735996371187,3.2078,3638.7,3638.1,6.46652972]
[1735996371485,0.8577,3638.6,3638.3,2.2108796]
[1735996371686,0.27496,3638.1,3638.0,6.46652972]
[1735996372080,0.8577,3638.6,3638.0,6.46652972]
[1735996372283,0.8577,3638.6,3638.2,2.2108796]
[1735996372492,0.27493,3638.5,3638.2,2.2108796]
[1735996372791,0.8577,3638.6,3638.2,2.4858296]
[1735996373788,0.27493,3638.5,3638.2,2.2108796]
[1735996374993,0.8577,3638.6,3638.3,0.27494]
[1735996375195,1.13263,3638.6,3638.3,0.27494]
[1735996375596,0.8577,3638.6,3638.2,2.2108796]
[1735996375890,0.27493,3638.5,3638.3,0.27494]
[1735996376093,1.13263,3638.6,3638.3,0.27494]
[1735996376395,0.27493,3638.5,3638.3,0.27494]
[1735996376596,0.8577,3638.6,3638.0,3.2078]
[1735996376907,0.8577,3638.6,3638.0,0.27497]
[1735996376908,0.27495,3638.2,3638.0,0.27497]
[1735996377996,0.27495,3638.3,3638.0,0.27497]
[1735996378599,0.4506,3638.5,3638.0,0.27497]
[1735996378892,0.27495,3638.3,3638.0,0.27497]
[1735996379093,0.27495,3638.3,3637.7,0.27498]
[1735996379094,0.27497,3638.0,3637.7,0.27498]
[1735996379301,0.27499,3637.7,3637.5,0.275]
[1735996379798,0.8836,3637.9,3637.8,0.27498]
[1735996380095,1.5446,3638.5,3637.8,3.2078]
[1735996380295,0.4512,3638.4,3638.0,2.2108796]
[1735996380495,0.72614,3638.4,3638.1,0.27496]
[1735996380799,0.72614,3638.4,3638.2,0.27495]
[1735996381101,0.4512,3638.4,3638.0,2.2108796]
[1735996381401,0.27495,3638.3,3638.1,0.27496]
[1735996382097,0.27494,3638.3,3638.0,2.2108796]
[1735996382398,0.27494,3638.3,3638.1,0.27496]
[1735996382791,0.4512,3638.4,3637.8,3.2078]
[1735996382992,0.27495,3638.2,3638.0,0.27496]
[1735996383194,0.72614,3638.4,3638.2,0.27495]
[1735996383394,0.72614,3638.4,3638.0,2.2108796]
[1735996383395,0.72614,3638.4,3638.3,0.27494]
[1735996383595,0.27495,3638.3,3638.2,0.27495]
[1735996383795,0.72614,3638.4,3638.2,0.27495]
[1735996384404,0.4512,3638.4,3638.3,0.27494]
[1735996385203,0.72614,3638.4,3638.2,0.27495]
[1735996385696,0.72614,3638.4,3638.3,0.27494]
[1735996385902,0.8758,3638.4,3637.2,9.67432972]
[1735996386199,0.27499,3637.7,3637.4,0.27501]
[1735996386601,0.7176,3637.6,3637.3,2.6373796]
[1735996386799,0.7176,3637.6,3637.4,0.27501]
[1735996387402,0.7176,3637.6,3637.5,0.27501]
[1735996387599,0.27501,3637.4,3637.3,2.2108796]
[1735996388500,0.2870244,3637.5,3637.3,2.2108796]
[1735996388901,0.5620344,3637.5,3637.3,2.4858996]
[1735996389300,0.2870244,3637.5,3637.3,2.4858996]
[1735996389498,0.27501,3637.4,3637.3,2.4858996]
[1735996390204,0.27501,3637.4,3637.3,2.2108796]
[1735996390398,0.68756,3637.3,3636.5,6.46652972]
[1735996390699,0.27507,3636.6,3636.5,6.46652972]
[1735996391095,0.71657,3636.6,3636.5,5.78552972]
[1735996391596,1.57777,3636.6,3636.5,5.78552972]
[1735996392205,1.57777,3636.6,3636.0,11.07354075]
[1735996392206,0.27511,3636.2,3636.0,0.27512]
[1735996392402,1.3027,3636.6,3635.9,3.2078]
[1735996392707,0.2751,3636.3,3636.1,0.27511]
[1735996392907,1.3027,3636.6,3636.1,0.27511]
[1735996393202,3.2078,3637.9,3636.4,2.2108796]
[1735996393399,0.8406,3637.8,3637.4,2.2108796]
[1735996393608,0.8406,3637.8,3637.7,0.27499]
[1735996393798,0.8406,3637.8,3637.6,0.27499]
[1735996394109,0.8406,3637.8,3637.7,0.27499]
[1735996394404,3.0514796,3637.8,3637.1,3.2078]
[1735996394608,0.275,3637.6,3637.4,0.27501]
[1735996394793,0.71291,3637.5,3637.3,0.27502]
[1735996395508,0.4379,3637.5,3637.3,0.27502]
[1735996395806,0.4379,3637.5,3637.1,5.4186796]
[1735996395807,0.71291,3637.5,3637.1,5.4186796]
[1735996396104,0.71291,3637.5,3637.3,0.27502]
[1735996396500,0.71291,3637.5,3637.1,5.4186796]
[1735996396804,0.71291,3637.5,3637.3,0.27502]
[1735996397697,0.4379,3637.5,3637.1,5.4186796]
[1735996398004,0.71291,3637.5,3637.1,5.4186796]
[1735996398605,0.4379,3637.5,3637.4,2.4858896]
[1735996398994,1.11559,3637.8,3637.4,2.2108796]
[1735996399306,0.8406,3637.8,3637.4,2.2108796]
[1735996399500,0.8406,3637.8,3637.1,5.4186796]
[1735996399699,0.27502,3637.3,3637.1,5.6937096]
[1735996399910,0.27503,3637.2,3637.1,5.4186796]
[1735996400099,0.69313,3637.2,3637.1,5.4186796]
[1735996401001,0.27505,3637.0,3636.8,2.4859296]
[1735996401310,0.27506,3636.9,3636.6,8.62203963]
[1735996401603,0.27506,3636.9,3636.8,0.27506]
[1735996401806,0.4374,3637.0,3636.5,5.4186796]
[1735996402110,0.4374,3637.0,3636.3,8.62203963]
[1735996402302,0.27507,3636.7,3636.5,0.27507]
[1735996402602,0.27507,3636.7,3636.3,8.62203963]
[1735996402808,0.27507,3636.7,3636.5,0.27508]
[1735996403312,0.27505,3636.9,3636.7,0.27506]
[1735996403503,0.27506,3636.8,3636.7,0.27506]
[1735996403704,0.4374,3637.0,3636.5,2.2108796]
[1735996404008,0.71245,3637.0,3636.8,0.27505]
[1735996404199,0.27505,3636.9,3636.5,2.2108796]
[1735996404401,0.4374,3637.0,3636.5,2.2108796]
[1735996404806,0.27505,3636.9,3636.8,0.27506]
[1735996405308,0.4374,3637.0,3636.5,2.2108796]
[1735996405508,0.27506,3636.9,3636.7,0.27507]
[1735996405909,0.4374,3637.0,3636.7,0.27507]
[1735996406101,0.4374,3637.0,3636.2,2.2108796]
[1735996406308,0.27508,3636.6,3636.4,0.27508]
[1735996406922,0.4225,3636.5,3636.4,0.27509]
[1735996407104,0.69758,3636.5,3636.4,0.27509]
[1735996407504,0.69758,3636.5,3636.3,0.27509]
[1735996407505,0.27509,3636.4,3636.3,0.27509]
[1735996407713,0.432,3636.4,3636.3,0.27509]
[1735996408110,0.432,3636.4,3636.2,2.2108796]
[1735996408313,0.2751,3636.3,3636.2,2.2108796]
[1735996408612,0.432,3636.4,3636.1,3.2078]
[1735996408807,0.2751,3636.2,3636.1,3.2078]
[1735996409211,0.2751,3636.2,3636.1,3.48291]
[1735996409405,0.2751,3636.2,3636.1,3.2078]
[1735996409914,0.27512,3636.0,3635.9,10.83291923]
[1735996410110,0.4537,3636.3,3635.9,11.10804923]
[1735996410316,0.27512,3636.1,3635.9,2.4860096]
[1735996410516,0.27512,3636.0,3635.9,2.4860096]
[1735996410715,0.27512,3636.1,3635.9,2.4860096]
[1735996411018,0.27512,3636.1,3635.9,2.4859996]
[1735996411207,0.27512,3636.1,3636.0,0.27512]
[1735996411608,0.4537,3636.3,3635.9,2.4860096]
[1735996411912,0.27511,3636.1,3635.9,2.4860096]
[1735996412209,0.27512,3636.0,3635.9,2.2108796]
[1735996412513,0.27512,3636.0,3635.6,3.2078]
[1735996412514,0.27514,3635.8,3635.6,3.48295]
[1735996412705,0.69424,3635.7,3635.6,3.2078]
[1735996413415,0.27516,3635.6,3635.4,0.27516]
[1735996413804,0.27516,3635.5,3635.3,8.89720963]
[1735996414107,0.27516,3635.5,3635.3,8.62203963]
[1735996414308,0.27516,3635.5,3635.3,8.89720963]
[1735996414510,0.27516,3635.5,3635.3,8.62203963]
[1735996414817,0.27516,3635.4,3635.3,8.62203963]
[1735996415215,0.27519,3635.1,3634.9,0.2752]
[1735996415413,0.4328,3635.0,3634.9,0.2752]
[1735996416307,3.2078,3635.6,3635.5,0.27516]
[1735996416507,3.6192,3636.5,3635.5,2.2108796]
[1735996416713,0.27512,3636.0,3635.8,0.27513]
[1735996417113,0.4328,3636.3,3635.6,3.2078]
[1735996417114,0.4137,3636.2,3635.6,3.2078]
[1735996417415,0.68881,3636.2,3636.0,0.27511]
[1735996417614,0.27511,3636.1,3636.0,0.27511]
[1735996418016,0.68881,3636.2,3636.0,0.27511]
[1735996418216,3.6192,3636.5,3635.6,3.2078]
[1735996418413,0.2751,3636.3,3636.1,0.27511]
[1735996419312,0.2751,3636.2,3636.1,0.27511]
[1735996420916,0.4441,3636.4,3636.1,0.27511]
[1735996421218,0.2751,3636.2,3636.0,0.27511]
[1735996423312,0.2751,3636.2,3636.1,0.27511]
[1735996424417,0.4441,3636.4,3635.7,0.4537]
[1735996424727,0.2751,3636.3,3636.2,0.2751]
[1735996425910,0.71919,3636.4,3636.2,0.2751]
[1735996426716,0.71919,3636.4,3635.7,0.4537]
[1735996427018,0.2751,3636.3,3636.2,0.2751]
[1735996427314,0.4137,3636.7,3636.6,0.27507]
[1735996430121,0.4302,3636.8,3636.7,0.27507]
[1735996430420,0.4107,3637.2,3637.1,0.27504]
[1735996432422,0.4107,3637.2,3637.0,2.2108796]
[1735996432423,0.27501,3637.4,3637.2,0.27503]
[1735996432621,0.00208251,3637.5,3637.2,0.27503]
[1735996432622,0.43388251,3637.5,3637.2,0.27503]
[1735996432819,0.43388251,3637.5,3637.4,0.27501]
[1735996433024,0.00208251,3637.5,3637.4,5.6936896]
[1735996434225,0.4195,3638.3,3638.2,0.27495]
[1735996434816,0.4195,3638.3,3638.2,3.48275]
[1735996435021,0.8724,3638.6,3638.2,3.2078]
[1735996435220,1.2919,3638.6,3638.2,3.2078]
[1735996435524,1.2919,3638.6,3638.5,0.27493]
[1735996435823,1.2919,3638.6,3638.2,3.2078]
[1735996435824,1.56682,3638.6,3638.3,0.27494]
[1735996436726,1.2919,3638.6,3638.3,0.27494]
[1735996436934,0.27493,3638.5,3638.3,0.27494]
[1735996439330,1.2919,3638.6,3638.2,3.2078]
[1735996439522,0.27494,3638.3,3638.2,3.2078]
[1735996439826,1.56682,3638.6,3638.4,0.27493]
[1735996440023,1.2919,3638.6,3638.2,3.2078]
[1735996440227,1.2919,3638.6,3638.4,0.27494]
[1735996440526,1.56683,3638.6,3638.3,2.2108796]
[1735996440725,1.56683,3638.6,3638.4,0.27494]
[1735996442027,0.2749,3639.0,3638.8,0.2749]
[1735996442217,0.6973,3639.0,3638.8,0.2749]
[1735996442421,0.69729,3639.0,3638.8,0.2749]
[1735996442617,0.4224,3639.0,3638.9,0.2749]
[1735996442825,0.71406,3639.5,3638.7,2.2108796]
[1735996443029,0.4392,3639.5,3639.2,2.2108796]
[1735996443224,0.4392,3639.5,3639.4,0.27486]
[1735996443933,0.8632,3639.8,3639.2,2.2108796]
[1735996444228,0.8632,3639.8,3639.7,0.27484]
[1735996444433,0.8632,3639.8,3639.6,0.27484]
[1735996444630,3.20784311,3640.2,3639.5,5.4186796]
[1735996444828,3.20784311,3640.2,3640.1,3.48261]
[1735996445427,0.8487,3640.8,3640.1,3.48261]
[1735996445428,1.12346,3640.8,3640.5,0.27478]
[1735996445825,1.12346,3640.8,3640.4,0.27478]
[1735996445826,0.27477,3640.7,3640.4,0.27478]
[1735996446133,0.4264,3640.8,3640.1,3.2078]
[1735996446430,0.4264,3640.8,3640.3,2.2108796]
[1735996446623,0.70116,3640.8,3640.2,0.2748]
[1735996446932,0.70116,3640.8,3640.3,0.27479]
[1735996447125,0.4264,3640.8,3640.1,3.2078]
[1735996447326,0.27477,3640.6,3640.3,0.27479]
[1735996447521,0.4264,3640.8,3640.1,3.2078]
[1735996447832,0.27479,3640.4,3640.1,3.4826]
[1735996448029,0.4264,3640.8,3640.2,0.2748]
[1735996448423,0.27479,3640.4,3640.1,3.2078]
[1735996448721,0.27479,3640.5,3640.3,0.27479]
[1735996450524,0.27476,3640.7,3640.3,0.27479]
[1735996450722,0.27479,3640.3,3640.1,3.4826]
[1735996450933,0.4362,3640.6,3640.1,3.2078]
[1735996451131,0.27473,3641.2,3640.9,0.27474]
[1735996451325,3.2078,3641.4,3639.8,0.4152]